Cogmind - Beta 10.1 @@@ ROGUE MODE // 2021.05.17 @ 07:08:38 Player: Farfid Result: Destroyed by as-16518 with Assembled Maul Performance ------------- Evolutions (0) 0 Regions Visited (3) 600 Robots Destroyed (3) 15 Value Destroyed (0) 0 Prototype IDs (25) 500 Alien Tech Used (0) 0 Bonus (240) 240 TOTAL SCORE: 1355 Bonus ------- Aligned with FarCom 300 Friendly Fire -60 Cogmind --------- Core Integrity 0/250 Matter 300/300 Energy 100/100 System Corruption 1% Temperature Cool (15) Movement Walking (90) Location -10/Exiles Parts ------- > --- POWER (1) -------- Ion Engine > --- PROPULSION (2) --- Potential Leg Potential Leg > --- UTILITY (2) ------ Large Storage Unit > --- WEAPON (2) ------- (None) > --- INVENTORY (10) --- Light Ion Engine Peak State ------------ > --- POWER ------------ Ion Engine > --- PROPULSION ------- Potential Leg Potential Leg > --- UTILITY ---------- Large Storage Unit > --- WEAPON ----------- Medium Laser Light Assault Rifle > --- INVENTORY -------- Light Ion Engine Fission Core Fission Core [Rating: 25] Favorites ----------- Power Ion Engine Engine Ion Engine Propulsion Compact Wheel Leg Potential Leg Wheel Compact Wheel Utility Large Storage Unit Storage Large Storage Unit Weapon Medium Laser Energy Gun Medium Laser Ballistic Gun Light Assault Rifle Build | -11 -10 -10 -10 ------- Run | Scr Mat Min Exi Slots Evolved . | . . . . Power . | . . . . Propulsion . | . . . . Utility . | . . . . Weapon . | . . . . Parts Attached 10 | 6 2 . 2 Power 1 | 1 . . . Engine 1 | 1 . . . Core . | . . . . Reactor . | . . . . Propulsion 4 | 2 . . 2 Treads . | . . . . Leg 2 | . . . 2 Wheel 2 | 2 . . . Hover . | . . . . Flight . | . . . . Utility 3 | 1 2 . . Device . | . . . . Storage 3 | 1 2 . . Processor . | . . . . Hackware . | . . . . Protection . | . . . . Artifact . | . . . . Weapon 2 | 2 . . . Energy Gun 1 | 1 . . . Energy Cannon . | . . . . Ballistic Gun 1 | 1 . . . Ballistic Cannon . | . . . . Launcher . | . . . . Special Weapon . | . . . . Impact Weapon . | . . . . Slashing Weapon . | . . . . Piercing Weapon . | . . . . Special Melee Weapon . | . . . . Unidentified Prototypes . | . . . . Parts Lost 2 | . . . 2 Power . | . . . . Propulsion . | . . . . Utility . | . . . . Weapon 2 | . . . 2 Highest Loss Streak 2 | . . . 2 Average Slot Usage (%) 83 | . 87 85 83 Engine 14 | . 14 14 14 Leg 7 | . . . 9 Wheel 20 | . 28 28 18 Storage 14 | . 16 14 14 Energy Gun 13 | . 14 14 13 Ballistic Gun 13 | . 14 14 13 Naked Turns . | . . . . Heaviest Build 24 | 12 24 24 24 Greatest Support 60 | 26 26 26 60 Greatest Overweight (x) . | . . . . Average Overweight (x) . | . . . . Largest Inventory Capacity 14 | 6 14 10 10 Average Capacity 9 | 5 8 10 10 Most Carried 3 | 1 1 1 3 Average Carried 2 | . 1 1 2 Final Capacity 10 | 6 10 10 10 Final Carried 1 | 1 1 1 1 Class Distribution -------------------- 100% | Mutant Dominant Class ---------------- Mutant | -10/Materials Mutant | -10/Mines Mutant | -10/Exiles Resources | -11 -10 -10 -10 ----------- Run | Scr Mat Min Exi Matter Collected 242 | 222 . . 20 Remotely . | . . . . Salvage Created 52 | . . . 52 Parts . | . . . . Haulers Intercepted . | . . . . Recyclers Shooed . | . . . . Parts Field Recycled . | . . . . Retrieved Matter . | . . . . Parts Self-Destructed . | . . . . Prevented . | . . . . Kills | -11 -10 -10 -10 ------- Run | Scr Mat Min Exi Combat Hostiles Destroyed 3 | . . . 3 Melee 2 | . . . 2 Guns 1 | . . . 1 Classes Destroyed 1 | . . . 1 Assembled 3 | . . . 3 Best Kill Streak 3 | . . . 3 Combat Bots Only 3 | . . . 3 Max Kills in Single Turn 1 | . . . 1 Gunslinging . | . . . . Exploded . | . . . . Melee 1 | . . . 1 Uniques/NPCs Destroyed . | . . . . Combat | -11 -10 -10 -10 -------- Run | Scr Mat Min Exi Damage Taken 1219 | . . . 1219 Core 275 | . . . 275 Absorbed by Shields . | . . . . Core Remaining (%) 100 | 100 . . . Volleys Fired 8 | . . . 8 Largest 2 | . . . 2 Hottest 70 | . . . 70 Shots Fired 13 | . . . 13 Gun 13 | . . . 13 Cannon . | . . . . Launcher . | . . . . Special . | . . . . Kinetic 5 | . . . 5 Thermal 8 | . . . 8 Explosive . | . . . . Electromagnetic . | . . . . Robot Hit Streak 4 | . . . 4 Robot Miss Streak 4 | . . . 4 Penetration Max . | . . . . Secondary Targets 1 | . . . 1 Max Gunslinging Chain 1 | . . . 1 Shots Hit Robots 8 | . . . 8 Core Hits 17 | . . . 17 Critical Hits . | . . . . Critical Kills . | . . . . Critical Parts Destroyed . | . . . . Melee Attacks . | . . . . Impact . | . . . . Slashing . | . . . . Piercing . | . . . . Sneak Attacks . | . . . . Combat Hostiles . | . . . . Follow-up Attacks . | . . . . Damage Inflicted 191 | . . . 191 Guns 96 | . . . 96 Cannons . | . . . . Explosions . | . . . . Melee . | . . . . Ramming 95 | . . . 95 Kinetic 23 | . . . 23 Thermal 73 | . . . 73 Explosive . | . . . . Electromagnetic . | . . . . Impact . | . . . . Slashing . | . . . . Piercing . | . . . . Highest Corruption 1 | . . . 1 Average Corruption 1 | . . . 1 Corruption Purged . | . . . . Overload Shots . | . . . . Overflow Damage . | . . . . Projectiles . | . . . . Explosions . | . . . . Melee . | . . . . Knockbacks . | . . . . Impact . | . . . . Kinetic . | . . . . Secondary . | . . . . Self-Inflicted Damage 17 | . . . 17 Shots . | . . . . Rammed 13 | . . . 13 Targets Rammed 26 | . . . 26 Kicked 13 | . . . 13 Crushed . | . . . . Highest Temperature 250 | . . . 250 Average Temperature 111 | . . . 111 Received Heat Transfer 480 | . . . 480 Siege Activations . | . . . . Robots Corrupted . | . . . . Combat Hostiles . | . . . . Parts Fried . | . . . . Impact Corruptions . | . . . . Robots Melted . | . . . . Combat Hostiles . | . . . . Parts Melted . | . . . . Heat Transferred 222 | . . . 222 Parts Sabotaged . | . . . . Parts Stolen . | . . . . Parts Stripped . | . . . . Power Chain Reactions . | . . . . Missiles Intercepted . | . . . . Alert | -11 -10 -10 -10 ------- Run | Scr Mat Min Exi Peak Influence 22 | . 22 8 . Initial 8 | . . 8 . Average 7 | . 10 8 . Maximum Alert Level . | . . . . Low Security (%) 100 | 100 100 100 . Level 1 . | . . . . Level 2 . | . . . . Level 3 . | . . . . Level 4 . | . . . . Level 5 . | . . . . High Security . | . . . . Max Security . | . . . . Squads Dispatched 1 | . 1 . . Investigation . | . . . . Extermination . | . . . . Reinforcement 1 | . 1 . . Assault . | . . . . Garrison . | . . . . Intercept . | . . . . Construction Impeded . | . . . . Haulers Reinforced . | . . . . Stealth | -11 -10 -10 -10 --------- Run | Scr Mat Min Exi Distress Signals . | . . . . Communications Jammed . | . . . . Distress Signals . | . . . . Times Spotted 12 | . 1 . 11 Peak Tracking Total 11 | . 1 . 11 Tactical Retreats 2 | . . . 2 Traps | -11 -10 -10 -10 ------- Run | Scr Mat Min Exi Traps Triggered . | . . . . Indirectly . | . . . . Trap Hack Attempts . | . . . . Triggered . | . . . . Disarmed . | . . . . Reprogrammed . | . . . . Reused . | . . . . Traps Extracted . | . . . . Installed . | . . . . Triggered . | . . . . Machines | -11 -10 -10 -10 ---------- Run | Scr Mat Min Exi Machines Disabled . | . . . . Max in Single Turn . | . . . . Machines Sabotaged . | . . . . Garrisons Compromised . | . . . . Overloaded Fab Kills . | . . . . Fab Network Shutdowns . | . . . . Hacking | -11 -10 -10 -10 --------- Run | Scr Mat Min Exi Machines Accessed 3 | . 1 . 2 Terminals 1 | . 1 . . Fabricators . | . . . . Repair Stations . | . . . . Recycling Units . | . . . . Scanalyzers . | . . . . Garrison Access . | . . . . Total Hacks 5 | . 3 . 2 Successful 4 | . 2 . 2 Failed . | . . . . Catastrophic . | . . . . Database Lockouts 1 | . 1 . . Manual 3 | . 2 . 1 Terminals 3 | . 3 . . Fabricators . | . . . . Repair Stations . | . . . . Recycling Units . | . . . . Scanalyzers . | . . . . Garrison Access . | . . . . Terminal Hacks 4 | . 2 . 2 Record 1 | . . . 1 Part Schematic 1 | . 1 . . Prototype ID Bank 1 | . 1 . . EX-Prototype ID Bank 1 | . . . 1 Fabricator Hacks . | . . . . Repair Station Hacks . | . . . . Recycling Unit Hacks . | . . . . Scanalyzer . | . . . . Garrison Access Hacks . | . . . . Unauthorized Hacks . | . . . . Terminals . | . . . . Fabricators . | . . . . Repair Stations . | . . . . Recycling Units . | . . . . Scanalyzers . | . . . . Garrison Access . | . . . . Data Cores Recovered . | . . . . Used . | . . . . Hacking Detections . | . . . . Full Trace Events . | . . . . Feedback Events . | . . . . Feedback Blocked . | . . . . Robot Schematics Acquired . | . . . . Robots Built . | . . . . Matter . | . . . . Time . | . . . . Total Robot Build Rating . | . . . . Part Schematics Acquired 1 | . 1 . . Parts Built . | . . . . Matter . | . . . . Time . | . . . . Total Part Build Rating . | . . . . Parts Repaired . | . . . . Time . | . . . . Parts Recycled . | . . . . Recycled Matter . | . . . . Retrieved Matter . | . . . . Retrieved Components . | . . . . Parts Scanalyzed . | . . . . Part Schematics Acquired . | . . . . Parts Damaged . | . . . . Bothacking | -11 -10 -10 -10 ------------ Run | Scr Mat Min Exi Used RIF Installer . | . . . . Robots Hacked . | . . . . Non-combat . | . . . . Combat . | . . . . Robot Hacks Applied . | . . . . Relay Couplers Released . | . . . . Robots Rewired . | . . . . Allies Hacked . | . . . . Hacks Repelled . | . . . . Allies | -11 -10 -10 -10 -------- Run | Scr Mat Min Exi Total Allies 1 | . . 1 . Largest Group 1 | . . 1 1 Highest-Rated Group 31 | . . 31 31 Highest-Rated Ally 31 | . . 31 31 Total Orders . | . . . . Ally Attacks . | . . . . Total Damage . | . . . . Kills . | . . . . Allies Corrupted . | . . . . Allies Melted . | . . . . Intel | -11 -10 -10 -10 ------- Run | Scr Mat Min Exi Robot Analysis Total . | . . . . Derelict Logs Recovered . | . . . . Drone Launches . | . . . . Drone Recoveries . | . . . . Exploration | -11 -10 -10 -10 ------------- Run | Scr Mat Min Exi Turns Passed 741 | 43 65 74 559 Spaces Moved 711 | 37 67 65 542 Core 1 | 1 . . . Treads . | . . . . Legs 145 | . . . 145 Wheels 565 | 36 67 65 397 Hover . | . . . . Flight . | . . . . Fastest Speed 50 | 50 90 90 90 Average Speed 89 | 89 90 90 90 Slowest Speed 100 | 100 90 90 90 Overloaded Moves . | . . . . Propulsion Burnouts . | . . . . Robots Hopped . | . . . . Cave-ins Triggered . | . . . . Exploration Rate (%) 29 | 4 17 17 79 Regions Visited 3 Branch Regions 2 Pre-discovered Areas 1 | . . . 1 Known Exits Taken . | . . . . Unknown Exits Taken 3 | 1 1 1 . Scrap Searched . | . . . . Spaces Dug . | . . . . Terrain Destroyed . | . . . . Melee . | . . . . Projectile . | . . . . AOE . | . . . . Terrain Rammed . | . . . . Walls Destroyed . | . . . . Machines Disabled . | . . . . Actions | -11 -10 -10 -10 --------- Run | Scr Mat Min Exi Total 796 | 43 71 80 602 Wait 35 | . 1 16 18 Move 708 | 36 66 64 542 Hop . | . . . . Pick Up 3 | 1 . . 2 Fast Attach 10 | 6 2 . 2 Attach . | . . . . Detach . | . . . . Swap . | . . . . Drop 6 | . 2 . 4 Fire 8 | . . . 8 Melee . | . . . . Ram . | . . . . Kick 26 | . . . 26 Crush . | . . . . Escape Stasis . | . . . . Rewire . | . . . . Trap . | . . . . Miscellaneous . | . . . . Route ------- -11/Scrapyard -10/Materials -10/Mines -10/Exiles History --------- Turn | Location | Event 19 | -11/Scrapyard | Discovered new exit (range 15) 44 | -11/Scrapyard | Entered Materials 72 | -10/Materials | Discovered new exit (range 5) 96 | -10/Materials | Central database locked down 109 | -10/Materials | Entered Mines 112 | -10/Mines | Received a Mining Laser from a helpful Derelict 148 | -10/Mines | Assembled infested the area 169 | -10/Mines | Deemed a non-threat by the Exiles lab entrance 169 | -10/Mines | Discovered new exit (range 5) 183 | -10/Mines | Entered Exiles 183 | -10/Exiles | Accompanied by 1 ally 210 | -10/Exiles | Met 8R-AWN 221 | -10/Exiles | Met EX-HEX 303 | -10/Exiles | Met EX-DEC 310 | -10/Exiles | Learned location of Zion (-6) 318 | -10/Exiles | Build established: Mutant 347 | -10/Exiles | Visited The Gauntlet 465 | -10/Exiles | Met EX-BIN 477 | -10/Exiles | Aligned with FarCom system 478 | -10/Exiles | Given EX-Vault access code 499 | -10/Exiles | Opened EX-Vault 520 | -10/Exiles | Warned to stay clear of 0b10 Research branches 554 | -10/Exiles | Found Potential Leg 556 | -10/Exiles | Found Potential Leg 672 | -10/Exiles | Attacked by the Exiles 725 | -10/Exiles | Core integrity fell below 50% 739 | -10/Exiles | Core integrity fell below 20% 742 | -10/Exiles | Destroyed by as-16518 with Assembled Maul Last Messages --------------- 00723_ Slammed into as-16518. 00724_ Destabilizing: Core damaged (-12). 00724_ Knocked back. 00725_ Kicked as-80322 out of the way. 00727_ Slammed into as-80322. 00729_ Kicked as-80322 out of the way. 00731_ Slammed into as-80322. 00733_ Kicked as-80322 out of the way. 00733_ Knocked back. 00734_ Slammed into as-80322. 00735_ as-80322 destroyed. 00736_ Kicked as-16518 out of the way. 00738_ Kicked as-19479 out of the way. 00739_ Slammed into as-19479. 00740_ Kicked as-21874 out of the way. 00741_ HV Slug penetrates Wall. 00741_ Penetrated by HV Slug. 00741_ Slammed into as-21874. 00741_ Potential Leg permanently disabled. 00741_ Destabilizing: Short circuit. Map ----- +----------------------------------------------------+ | ?????????????????????????????????????????????????? | | ?????????????????????????????????????????????????? | | ?????????????????????????????????????????????????? | | ?????????????????????????????????????????????????? | | ?????????????????????????????????????????????????? | | ?????????????????????????????????????????????????? | | ?????????????????????????????????????????????????? | | ?????????????????????????????????????????????????? | | ?????????????????????????????????????????????????# | | ?????????????????????????????????????????????????# | | ?????????????????????????????????????????????????# | | ?????????????????????????????????????????????????# | | ?????????????????????????????????????????????????# | | ?????????????????????????????????????????????????? | | ?????????????????????????????????????????????????? | | ?????????????????????????????????????????????????? | | ????????????????????????#######??????????????????? | | ?????????? ######???????#!!! "#??????????????????? | | ?????????? #""#??????# "#??????????????????? | | ?????????? ??????# "#??????????????????? | | ????????? #????## ""#????????????#####?? | | ????????? #####" % ""#???????????? """#? | | ?????????# ##"%%%""#????????????" """#? | | ??????????# #""%% ###???????????"" #? | | ?????????????# %%a #?????????????"" #? | | ????????????????# a@% ##????????????"" "#? | | ????????????????### %%a"#???????????? ""?? | | ??????????########" a ###???????????" "??? | | ??????????# !!""""" % ##??????????# #??? | | ??????????#! "###"" ######???### ###? | | ??????????#! "#?##" """#####X# #"## | | ??????????#! ##??#" """ | | ??????????# !""""""###???#"# "" | | ??????????#########??????#### " | | ????????????????????????????### | | ??????????????????????????????### z | | ????????????????????????????????## | | ?????????????????????????????????## | | ??????????????????????????????????##" | | ???????????????????????????????????#""" | | ??????????????????????????????????##" * | | ??????????????????????????????????#"" | | ?????????????????????????????????##""" " | | ?????????????????????????????????#""" "" | | ?????????????????????????????????#""" " | | ?????????????????????????????????#"" * | | ?????????????????????????????????#""" | | ?????????????????????????????????#"" | | ?????????????????????????????????##"" | | ??????????????????????????????????#"""" | +----------------------------------------------------+ Best States ------------- Heat Dissipation 25 Energy Generation 10 Energy Capacity 250 Matter Stores 300 Matter Capacity 300 Sight Range 16 Terrain Scan Density 10 Evasion (%) 42 Item Schematics ----------------- Lrg. Storage Unit | -10/Materials | Hacked Robot Schematics ------------------ None Fabricated ------------ Nothing Alien Tech Used ----------------- None Achievements -------------- None Challenges ------------ None Game ------ Seed CombatDisruptorShifter Manual? 0 Play Time 00:07:27 Cumulative 257.8 hours Start 2021.05.17 @ 07:02:30 End 2021.05.17 @ 07:08:38 Sessions 1 Manual Loads 0 Difficulty Rogue Special Mode None Game No. 106 Rogue 106 Adventurer 0 Explorer 0 Win Type - Total 9 Types 7/0/1/1/0/0/0/0/0 Lore% 73 Gallery% 83 Achievement% 66 Wizard Run 0 Options --------- ASCII 0 Keyboard 0 Movement Mouse Keybinds 0 Fullscreen 2 Font 12/Smallcaps Map View 83x54 Tactical HUD 1 Map Filters NONE Filters NONE Steam X RUN: 5777e197-952c-4a69-b48a-18b9d0690425